Workbook

Sheet ORÇAMENTO
B6: ANEXO I - PLANILHA ORÇAMENTÁRIA - NÃO DESONERADA
B8: SERVIÇO: REALIZAÇÃO DE LEVANTAMENTOS TOPOGRÁFICOS PARA APOIO À FISCALIZAÇÃO CODEVASF.
B10: LOCAL: DIVERSOS MUNICÍPIOS INSERIDOS DE ATUAÇÃO DA 3ª SUPERINTENDÊNCIA REGIONAL DA CODEVASF.
B13: Item | C13: Descrição dos Serviços | D13: Unidade | E13: Quant. | F13: Valor Unitário | G13: Valor Total
B14: 1 | C14: Administração local | D14: un | E14: 1 | F14: ='COMPOSIÇÕES UNITARIAS'!I35 -> 25808.16 | G14: =E14*F14 -> 25808.16
B15: 2 | C15: Equipe para cadastro de obras (As Built) | D15: un | E15: 1 | F15: ='COMPOSIÇÕES UNITARIAS'!I68 -> 172332.96 | G15: =E15*F15 -> 172332.96
B16: 3 | C16: Levantamento de volumes de cortes e aterros, extraídos de levantamento planialtimétrico (por área), incluindo apresentação de pranchas com as seções transversais de corte e aterro, bem como planilha com a memória de cálculo dos volumes. | D16: m² | E16: ='Levantamento Planialtimetrico'!M38-0 -> 1950000 | F16: ='Levantamento Planialtimetrico'!H38-0 -> 0.36 | G16: =E16*F16 -> 702000
B17: TOTAL GERAL R$ | G17: =SUM(G14:G16) -> 900141.12
B18: Base para orçamento: Tabela de Engenharia Consultiva CODEVASF 06/2020, SINAPI - OUTUBRO/2023 e ORSE OUTUBRO/2023
B22: Levantamento topografico realizado por equipe tecnica, conforme especificações descritas nos termos de referencia.

Sheet BDI
C2: REALIZAÇÃO DE SERVIÇOS DE TOPOGRAFIA PARA APOIO À FISCALIZAÇÃO DE OBRAS DE AGUADAS REALIZADAS PELA CODEVASF EM MUNICÍPIOS INSERIDOS NA ÁREA DE ATUAÇÃO DA 3ª SR CODEVASF.
C4: DETALHAMENTO DO BDI NÃO DESONERADO
C6: Item | D6: Descrição dos serviços | E6: Preço de Venda (%) | F6: Custo Direto (%)
C8: 1 | D8: Administração Central (A) | F8: 0.0365
C10: 2 | D10: Impostos e Taxas (I) | E10: =SUM(E11:E14) -> 0.0665
C11: 2.1 | D11: ISS | E11: 0.03
C12: 2.2 | D12: PIS | E12: 0.0065
C13: 2.3 | D13: Cofins | E13: 0.03
C14: 2.4 | D14: CPRB | E14: 0
C15: 3 | D15: Risco, seguro e garantia (R) | F15: =SUM(F16:F17) -> 0.013
C16: 3.1 | D16: Risco | F16: 0.01
C17: 3.2 | D17: Seguro + Garantia | F17: 0.003
C19: 4 | D19: Despesas Financeiras (DF) | F19: 0.01
C21: 5 | D21: Lucro (L) | F21: 0.07
D23: BDI* (%) | F23: =ROUND(((((1+F8+F15)*(1+F19)*(1+F21))/(1-E10))-1),4) -> 0.215
D27: BDI (%) - ADOTADO | F27: =F23 -> 0.215
C29: AC = | D29: taxa de rateio da Administração Central | F29: =F8 -> 0.0365
C30: I = | D30: taxa de tributos | F30: =E10 -> 0.0665
C31: R = | D31: taxa de risco, seguro e garantia | F31: =F15 -> 0.013
C32: DF = | D32: taxa das despesas financeiras | F32: =F19 -> 0.01
C33: L = | D33: taxa de lucro | F33: =F21 -> 0.07

Sheet COMPOSIÇÕES UNITARIAS
B6: OBRA: APOIO A FISCALIZAÇÃO DE OBRAS DA 3º SUPERINTENDENCIA REGIONAL. | H6: Data: outubro/2023
B7: SERVIÇO : Administração Local | H7: UNIDADE: | I7: unid.
B8: EQUIPAMENTO
B9: DISCRIMINAÇÃO | C9: UNID | D9: QUANT. | E9: PROD | F9: IMPROD | G9: P.UNIT. PROD | H9: P.UNIT. IMPR | I9: P.TOTAL
B11: SUB-TOTAL | I11: =SUM(I10:I10) -> 0
B12: MATERIAL
B13: DISCRIMINAÇÃO | C13: UNID | D13: QUANT. | H13: P.UNIT. | I13: P.TOTAL
A14: COTAÇÃO 1 | B14: Aluguel de Sala para escritório | C14: mês | D14: 1 | H14: 800 | I14: =ROUND(H14*D14,2) -> 800
A15: 2705 | B15: Energia elétrica | C15: kwh | D15: 600 | H15: =VLOOKUP(A15,INSUMOS!B9:E25,4,0) -> 0,96 | I15: 576
A16: 10557/ORSE | B16: Telefone - tarifa mensal | C16: unid. | D16: 1 | H16: =VLOOKUP(A16,INSUMOS!B10:E26,4,0) -> 154.99 | I16: 154.99
A17: 10558/ORSE | B17: Internet | C17: mês | D17: 1 | H17: =VLOOKUP(A17,INSUMOS!B11:E27,4,0) -> 89 | I17: 89
A18: 10562/ORSE | B18: Material de consumo desenho e escritório | C18: mês | D18: 1 | H18: =VLOOKUP(A18,INSUMOS!B12:E28,4,0) -> 30 | I18: 30
A19: COTAÇÃO 3 | B19: Material de Limpeza | C19: mês | D19: 1 | H19: 120.12 | I19: 120.12
B20: SUB-TOTAL | I20: =SUM(I14:I19) -> 1770.11
B21: SERVIÇOS - COMPOSIÇÕES AUXILIARES
B22: DISCRIMINAÇÃO | C22: UNID | D22: QUANT. | H22: P.UNIT. | I22: P.TOTAL
I23: =D23*H23 -> 0
B24: SUB-TOTAL | I24: =SUM(I23:I23) -> 0
B25: MÃO DE OBRA
B26: DISCRIMINAÇÃO | C26: UNID | D26: QUANT. | H26: P.UNIT. | I26: P.TOTAL
I27: =ROUND(H27*D27,2) -> 0
B29: SUB-TOTAL | I29: =SUM(I27:I28) -> 0
B31: PRODUÇÃO DA EQUIPE | C31: 1 | D31: CUSTO | I31: =I29+I24+I20+I11 -> 1770.11
B32: TOTAL - R$ | I32: =I31/C31 -> 1770.11
B33: BDI | C33: =BDI!F27 -> 0.215 | I33: =I32*C33 -> 380.57
B34: TOTAL DO SERVIÇO - R$ | I34: =I33+I32 -> 2150.68
B35: TOTAL DO SERVIÇO PARA 12 MESES - R$ | I35: =I34*12 -> 25808.16
B41: CODEVASF | C41: 01.04-A | D41: COMPOSIÇÃO DE PREÇO UNITÁRIO
B42: OBRA: APOIO A FISCALIZAÇÃO DE OBRAS DA 3º SUPERINTENDENCIA REGIONAL. | H42: =H6 -> Data: outubro/2023
B43: SERVIÇO:Equipe para cadastro de obras (As Built) | H43: UNIDADE: | I43: mês
B44: EQUIPAMENTO
B45: DISCRIMINAÇÃO | C45: UNID | D45: QUANT. | E45: PROD | F45: IMPROD | G45: P.UNIT. PROD | H45: P.UNIT. IMPR | I45: P.TOTAL
I46: =G46*D46 -> 0
B47: SUB-TOTAL | I47: =SUM(I46:I46) -> 0
B48: MATERIAL
B49: DISCRIMINAÇÃO | C49: UNID | D49: QUANT. | H49: P.UNIT. | I49: P.TOTAL
B52: SUB-TOTAL | I52: =SUM(I50:I51) -> 0
B53: SERVIÇOS - COMPOSIÇÕES AUXILIARES
B54: DISCRIMINAÇÃO | C54: UNID | D54: QUANT. | H54: P.UNIT. | I54: P.TOTAL
I55: =D55*H55 -> 0
B56: SUB-TOTAL | I56: =SUM(I55:I55) -> 0
B57: MÃO DE OBRA
B58: DISCRIMINAÇÃO | C58: UNID | D58: QUANT. | H58: P.UNIT. | I58: P.TOTAL
A59: 93566 | B59: Auxiliar de Escritorio | C59: mês | D59: 2 | H59: =INSUMOS!E15 -> 3158.58 | I59: =ROUND(H59*D59,2) -> 6317.16 | L59: 80
A60: 93559 | B60: DESENHISTA DETALHISTA | C60: mês | D60: 1 | H60: 5502.66 | I60: =ROUND(H60*D60,2) -> 5502.66
B62: SUB-TOTAL | I62: =SUM(I59:I61) -> 11819.82
B64: PRODUÇÃO DA EQUIPE | C64: 1 | D64: CUSTO | I64: =I62+I56+I52+I47 -> 11819.82
B65: TOTAL - R$ | I65: =I64/C64 -> 11819.82
B66: BDI | C66: =BDI!F27 -> 0.215 | I66: =I65*C66 -> 2541.26
B67: TOTAL DO SERVIÇO - R$ | I67: =I66+I65 -> 14361.08
B68: TOTAL DO SERVIÇO PARA 12 MESES - R$ | I68: =I67*12 -> 172332.96 | K68: 194806.44

Sheet Levantamento Planialtimetrico
B3: SERVIÇO: Levantamento planialtimétrico de terreno
B4: COMPOSIÇÃO DE PREÇOS - UNIDADE: M²
G5: Data: | H5: Outubro/2023
B6: MÃO DE OBRA.
B7: 1 | C7: CODIGO | D7: DESCRIÇÃO DOS INSUMOS | E7: UNID. | F7: QUANT. | G7: CUSTOS UNITÁRIO (R$). | H7: CUSTO TOTAL (R$). | K7: 4 aguadas/dia | L7: 1 aguada (m²) = | N7: 1200 | O7: (40m x 40m) | Q7: Quadrado de 30 m de lado para espelho dagua mais 5 m de borda
B8: 1.1 | C8: 90778 | D8: Coordenador/campo | E8: h | F8: =ROUND(0.5/2,2) -> 0.25 | G8: 119.07 | H8: =ROUND(F8*G8,2) -> 29.77 | L8: faixa de acesso de 4 x 25m = | N8: =4*25 -> 100
B9: 1.2 | C9: 90781 | D9: Topógrafo | E9: h | F9: =ROUND(4/2,2) -> 2 | G9: 29.92 | H9: =ROUND(F9*G9,2) -> 59.84 | L9: total/aguada (x2 primitivo/escavado) | N9: =(N7+N8)*2 -> 2600
B10: 1.3 | C10: 88253 | D10: Aux. de topografia | E10: h | F10: =ROUND(8/2,2) -> 4 | G10: 14.48 | H10: =ROUND(F10*G10,2) -> 57.92 | J10: =SUM(F8:F10) -> 6.25
J11: 12
B12: Total do Item 1: | H12: =SUM(H8:H10) -> 147.53 | J12: =J10*J11 -> 75
B13: LOCAÇÃO DE VEICULOS.
B14: 2 | D14: DESCRIÇÃO DOS INSUMOS | E14: UNID. | F14: QUANT. | G14: CUSTOS UNITÁRIO (R$). | H14: CUSTO TOTAL (R$).
B15: 2.1 | C15: COMPOSIÇÃO | D15: Veículo 4x4 à fiscalização com seguro, taxas de licenciamento, revisão periódica, manutenção, combustível e pneus. | E15: mês | F15: =ROUND((F8+F9)/176,3)-0.003 -> 0.01 | G15: ='CPU VEICULO'!D38 -> 6042.96 | H15: =ROUND(F15*G15,2) -> 60.43 | K15: 1 | L15: 176
B16: Total do Item 2: | H16: =SUM(H15) -> 60.43 | K16: x | L16: 8.8 | M16: =L15/20 -> 8.8
B17: EQUIPAMENTOS TOPOGRAFICOS. | L17: =L16/L15 -> 0.05
B18: 3 | D18: DESCRIÇÃO DOS INSUMOS | E18: UNID. | F18: QUANT. | G18: CUSTOS UNITÁRIO (R$). | H18: CUSTO TOTAL (R$).
B19: 3.1 | C19: CODEVASF | D19: Estação total classe 2 | E19: mês | F19: =ROUND((F9/176)*8,3) -> 0.091 | G19: =INSUMOS!E21 -> 1000 | H19: =ROUND(F19*G19,2) -> 91
B20: 3.2 | C20: CODEVASF | D20: Rádio | E20: mês | F20: =ROUND(((F8+F10)/176)*8,3) -> 0.193 | G20: =INSUMOS!E22 -> 338.67 | H20: =ROUND(F20*G20,2) -> 65.36 | K20: 1 | L20: 176
B21: Total do Item 3 | H21: =SUM(H19:H20) -> 156.36 | K21: x | L21: 6
B22: PREÇO DA EQUIPE 1+2+3/AGUADA | H22: =SUM(H12,H16,H21) -> 364.32 | K22: =L21/L20 -> 0.03409090909
B24: DESPESAS 01 EQUIPE - DIARIAS E ALIMENTAÇÃO POR AGUADA | L24: HOSPEDAGEM | M24: ALMOÇO | N24: JANTAR
B25: 4 | D25: DESCRIÇÃO | E25: UNID. | F25: QUANT. | G25: CUSTOS UNITÁRIO (R$). | H25: CUSTO TOTAL (R$). | L25: 75 | M25: 15 | N25: 15
B26: 4.1 | C26: COTAÇÃO 2 | D26: Hospedagem | E26: diaria | F26: =ROUND((F8+F9+F10)/150,3) -> 0.042 | G26: =VLOOKUP(C26,INSUMOS!B:F,4,0) -> 110 | H26: =ROUND(F26*G26,2) -> 4.62 | J26: =F8 -> 0.25 | K26: Coordenador/campo
B27: 4.2 | C27: 37370 | D27: Alimentação | E27: h | F27: =F10+F9+F8 -> 6.25 | G27: =VLOOKUP(C27,INSUMOS!B:F,4,0) -> 2,28 | H27: =ROUND(F27*G27,2) -> 14.25 | J27: =F9 -> 2 | K27: Topógrafo
B28: Total do item 4 | H28: =SUM(H26:H27) -> 18.87 | J28: =F10 -> 4 | K28: Aux. de topografia
B30: PRECO UNITARIO DE 01 (UMA) EQUIPE POR AGUADA (1+2+3+4) | H30: =H28+H22 -> 383.19 | J30: 4 | K30: aguada/dia | L30: 1 aguada= | M30: =N9 -> 2600 | N30: m²
D32: BDI | G32: =BDI!$F$27 -> 0.215 | H32: =ROUND(H30*G32,3) -> 82.39
B34: PRECO UNITARIO TOTAL DE 01 (UMA) EQUIPE POR AGUADA (1+2+3+4) | H34: =H30+H32 -> 465.58
B36: 01 (UMA) AGUADA = 1.300,00 M² | G36: =N7+N8 -> 1300 | J36: diaria hosp=
B38: PREÇO DO LEVANTAMENTO PLANIALTIMETRICO POR M² | H38: =ROUND(H34/G36,3) -> 0.36 | L38: 750 AGUADAS = | M38: =G36*2*750 -> 1950000 | N38: =N30 -> m²
K40: =H38*6000 -> 2160
I41: =H39*1750 -> 0 | K41: =I41*4 -> 0
G43: =3600*8 -> 28800

Sheet PO-I
B6: ANEXO I - PLANILHA ORÇAMENTÁRIA
B8: SERVIÇO: REALIZAÇÃO DE LEVANTAMENTOS TOPOGRÁFICOS PARA APOIO À FISCALIZAÇÃO CODEVASF.
B10: LOCAL: DIVERSOS MUNICÍPIOS DE ATUAÇÃO DA 3ª SUPERINTENDÊNCIA REGIONAL NO ESTADO DE PERNAMBUCO
B13: Item | C13: Descrição dos Serviços | D13: Unidade | E13: Quant. | F13: Valor Unitário | G13: Valor Total
B14: 2 | C14: Administração local | D14: un | E14: =ORÇAMENTO!E14 -> 1
B15: 3 | C15: Equipe para cadastro de obras (As Built) | D15: mês | E15: =ORÇAMENTO!E15 -> 1
B16: 4 | C16: Levantamento de volumes de cortes e aterros, extraídos de levantamento planialtimétrico (por área), incluindo apresentação de pranchas com as seções transversais de corte e aterro, bem como planilha com a memória de cálculo dos volumes. | D16: m² | E16: =ORÇAMENTO!E16 -> 1950000
B17: TOTAL GERAL R$ | I17: =G14/G17 -> 
B18: =ORÇAMENTO!B18 -> Base para orçamento: Tabela de Engenharia Consultiva CODEVASF 06/2020, SINAPI - OUTUBRO/2023 e ORSE OUTUBRO/2023
B22: Levantamento topografico realizado por equipe tecnica, conforme especificações descritas nos termos de referencia.

Sheet Enc Sociais
A1: DETALHAMENTO DOS ENCARGOS SOCIAIS
A3: DISCRIMINAÇÃO | F3: SEM DESONERAÇÃO | H3: COM DESONERAÇÃO
F4: HORISTA | G4: MESALISTA | H4: HORISTA | I4: MESALISTA
A5: A | B5: GRUPO A
A6: A1 | B6: INSS | F6: 0.2 | G6: 0.2 | H6: 0,00% | I6: 0,00%
A7: A2 | B7: Sesi | F7: 0.015 | G7: 0.015 | H7: 0.015 | I7: 0.015
A8: A3 | B8: Senai | F8: 0.01 | G8: 0.01 | H8: 0.01 | I8: 0.01
A9: A4 | B9: Incra | F9: 0.002 | G9: 0.002 | H9: 0.002 | I9: 0.002
A10: A5 | B10: Sebrae | F10: 0.006 | G10: 0.006 | H10: 0.006 | I10: 0.006
A11: A6 | B11: Salário Educação | F11: 0.025 | G11: 0.025 | H11: 0.025 | I11: 0.025
A12: A7 | B12: Seguro Contra Acidente de Trabalho | F12: 0.03 | G12: 0.03 | H12: 0.03 | I12: 0.03
A13: A8 | B13: FGTS | F13: 0.08 | G13: 0.08 | H13: 0.08 | I13: 0.08
A14: A9 | B14: Seconci | F14: 0,00% | G14: 0,00% | H14: 0,00% | I14: 0,00%
A15: SUBTOTAL DE "A" | F15: =SUM(F6:F14) -> 0.368 | G15: =SUM(G6:G14) -> 0.368 | H15: =ROUND(SUM(H6:H14),4) -> 0.168 | I15: =SUM(I6:I14) -> 0.168
A17: B | B17: GRUPO B
A18: B1 | B18: Repouso Semanal Remunerado | F18: 0.1806 | G18: NÃO INCIDE | H18: 0.1806 | I18: NÃO INCIDE
A19: B2 | B19: Feriados | F19: 0.0433 | G19: NÃO INCIDE | H19: 0.0433 | I19: NÃO INCIDE
A20: B3 | B20: Auxílio - Enfermidade | F20: 0.0087 | G20: 0.0066 | H20: 0.0087 | I20: 0.0066
A21: B4 | B21: 13º Salário | F21: 0.1103 | G21: 0.0833 | H21: 0.1103 | I21: 0.0833
A22: B5 | B22: Licença Paternidade | F22: 0.0007 | G22: 0.0005 | H22: 0.0007 | I22: 0.0005
A23: B6 | B23: Faltas Justificadas | F23: 0.0074 | G23: 0.0056 | H23: 0.0074 | I23: 0.0056
A24: B7 | B24: Dias de Chuvas | F24: 0.0223 | G24: NÃO INCIDE | H24: 0.0223 | I24: NÃO INCIDE
A25: B8 | B25: Auxílio Acidente de Trabalho | F25: 0.0011 | G25: 0.0008 | H25: 0.0011 | I25: 0.0008
A26: B9 | B26: Férias Gozadas | F26: 0.1046 | G26: 0.079 | H26: 0.1046 | I26: 0.079
A27: B10 | B27: Salário Maternidade | F27: 0.0004 | G27: 0.0003 | H27: 0.0004 | I27: 0.0003
A28: SUBTOTAL DE "B" | F28: =ROUND(SUM(F18:F27),4) -> 0.4794 | G28: =SUM(G19:G27) -> 0.1761 | H28: =ROUND(SUM(H18:H27),4) -> 0.4794 | I28: =SUM(I19:I27) -> 0.1761
A30: C | B30: GRUPO C
A31: C1 | B31: Aviso Prévio Indenizado | F31: 0.048 | G31: 0.0363 | H31: 0.048 | I31: 0.0363
A32: C2 | B32: Aviso Prévio Trabalhado | F32: 0.0011 | G32: 0.0009 | H32: 0.0011 | I32: 0.0009
A33: C3 | B33: Férias Indenizadas | F33: 0.0349 | G33: 0.0264 | H33: 0.0349 | I33: 0.0264
A34: C4 | B34: Depósito Recisão Sem Justa Causa | F34: 0.0295 | G34: 0.0223 | H34: 0.0295 | I34: 0.0223
A35: C5 | B35: Indenização Adicional | F35: 0.004 | G35: 0.0031 | H35: 0.004 | I35: 0.0031
A36: SUBTOTAL DE "C" | F36: =ROUND(SUM(F31:F35),4) -> 0.1175 | G36: =SUM(G31:G35) -> 0.089 | H36: =ROUND(SUM(H31:H35),4) -> 0.1175 | I36: =SUM(I31:I35) -> 0.089
A38: D | B38: GRUPO D
A39: D1 | B39: Reincidência de Grupo A sobre Grupo B | F39: 0.1764 | G39: 0.0648 | H39: 0.0805 | I39: 0.0296
A40: D2 | B40: Reincidência de Grupo A sobre Aviso Prévio Trabalhado e Reincidência do FGTS sobre Aviso Prévio Indenizado | F40: 0.0042 | G40: 0.0032 | H40: 0.004 | I40: 0.0031
A41: SUBTOTAL DE "D" | F41: =ROUND(SUM(F39:F40),4) -> 0.1806 | G41: =SUM(G39:G40) -> 0.068 | H41: =ROUND(SUM(H39:H40),4) -> 0.0845 | I41: =SUM(I39:I40) -> 0.0327
A43: TOTAIS DE ENCARGOS SOCIAIS | F43: =F15+F28+F36+F41 -> 1.1455 | G43: =G15+G28+G36+G41 -> 0.7011 | H43: =H15+H28+H36+H41 -> 0.8494 | I43: =I15+I28+I36+I41 -> 0.4658

Sheet CPU VEICULO
B2: CODEVASF - 1.4
B3: APOIO A FISCALIZAÇÃO DE OBRAS DA 3º SUPERINTENDENCIA REGIONAL.
B4: Caminhonete utilitária cabine dupla - CD SR 3.0 diesel 4x4 163 CV
B5: A | C5: Depreciação mensal do equipamento
B6: A1 | C6: Preço de Aquisição | D6: 187626
B7: A2 | C7: Tempo previsto de vida útil (meses) | D7: 60
B8: A3 | C8: Previsão de recup. Na venda do bem usado | D8: 0.4
B9: A4 | C9: Custo mensal [A1-(A3xA1)]/A2 | D9: =(D6-(D8*D6))/D7 -> 1876.26
B10: B | C10: Juros pelo Capital empregado
B11: B1 | C11: Taxa mensal de Juros | D11: 0.05
B12: B2 | C12: Juros s/depreciação/aluguel (B1xA4) | D12: =D11*D9 -> 93.81
B13: C | C13: Conservação e manutenção
B14: C1 | C14: Taxa de gastos s/a deprec. Inc. seguros (%) | D14: 1
B15: C2 | C15: Incidência mensal (C1xA4) | D15: =D14*D9 -> 1876.26
B16: D | C16: Combustível
B17: D1 | C17: Média mensal de quilômetro por veículo | D17: 3000
A18: 4221 | B18: D2 | C18: Preço do litro de combustível | D18: =VLOOKUP(A18,'sinapi_NÃO DESONERADO'!A:E,5,0) -> 6,28
B19: D3 | C19: Quilômetros rodados com um litro combustivel | D19: 10
B20: D4 | C20: Combustivel (D1/D3)*D2 | D20: =(D17/D19)*D18 -> 1884
B21: E | C21: Lubrificantes
B22: E1 | C22: Quilometragem do Contrato | D22: =D17*12 -> 36000
B23: E2 | C23: Franquia por troca de óleo (km) | D23: 6000
A24: 4227 | B24: E3 | C24: Preço do litro de óleo | D24: =VLOOKUP(A24,'sinapi_NÃO DESONERADO'!A:E,5,0) -> 29,28
B25: E4 | C25: Quantidade de litros de óleo por troca | D25: 3.65
B26: E5 | C26: Quantidade de dias do Contrato | D26: =30*D22/D17 -> 360
B27: E6 | C27: Lubrificantes E = (E1*E3*E4*30)/E2*E5 | D27: =(D22*D24*D25*30)/(D23*D26) -> 53.44
B28: F | C28: Pneus
B29: F1 | C29: Quilometragem do Contrato | D29: =D22 -> 36000
B30: F2 | C30: Vida do Pneu em quilômetros | D30: 45000
B31: F3 | C31: Quantidade de pneus | D31: 5
B32: F4 | C32: Preço do Pneu | D32: 777.56
B33: F5 | C33: Quantidade de dias do contrato | D33: =D26 -> 360
B34: F6 | C34: Pneus = (F1*F3*F4*30)/(F2*F5) | D34: =(D29*D31*D32*30)/(D30*D33) -> 259.19
B35: G | C35: Motorista
B36: G1 | C36: Salário com encargos sociais | D36: ='[1]Resumo R$_Poço'!E115 -> 0
B37: H | C37: Custo Mensal
C38: Sem Motorista | D38: =D9+D12+D15+D20+D27+D34 -> 6042.96
C39: Com Motorista | D39: =D9+D12+D15+D20+D27+D34+D36 -> 6042.96
B40: I | C40: Custo Direto p/ km Rodado
C41: Sem Motorista | D41: =D38/D17 -> 2.01
C42: Com Motorista | D42: =D39/D17 -> 2.01
B43: J | C43: Preço cobrado c/BDI
B44: J1 | C44: Sem Motorista | D44: =D38*(1+BDI!F27) -> 7342.2
B45: J2 | C45: Com Motorista | D45: =D39*(1+BDI!F27) -> 7342.2

Sheet INSUMOS
C6: Data Base Utilizada para Insumos: SINAPI Outubro/2023 Desonerado; ORSE Outubro/2023; Cotações. | D6: BDI = | E6: =BDI!F27 -> 0.215
B7: COMPONENTE GERAL
B8: ITEM | C8: DESCRIÇÃO | D8: UNID. | E8: VR.UNIT. | F8: FORNECEDOR
B9: COTAÇÃO 1 | C9: Aluguel de Sala para escritório | D9: mês | E9: 800 | F9: COTAÇÃO
B10: 2705 | C10: Energia elétrica | D10: kwh | E10: =VLOOKUP(B10,'sinapi_NÃO DESONERADO'!A:E,5,0) -> 0,96 | F10: SINAPI
B11: 10557/ORSE | C11: Telefone - dispendio mensal | D11: unid. | E11: 154.99 | F11: ORSE
B12: 10558/ORSE | C12: Internet - dispendio mensal | D12: mês | E12: 89 | F12: ORSE
B13: 10562/ORSE | C13: Material de escritório | D13: mês | E13: 30 | F13: ORSE
B14: COTAÇÃO 3 | C14: Material de Limpeza | D14: mês | E14: 120.12 | F14: COTAÇÃO | H14: =ORÇAMENTO!I17 -> 0
B15: 93566 | C15: Auxiliar de Escritorio | D15: mês | E15: 3158.58 | F15: SINAPI
B16: 93559 | C16: DESENHISTA DETALHISTA | D16: mês | E16: 5502.66 | F16: SINAPI | H16: =ORÇAMENTO!I21 -> 0
B17: 90778 | C17: Coordenador/campo | D17: h | E17: 119.07 | F17: SINAPI | H17: =ORÇAMENTO!I22 -> 0
B18: 90781 | C18: Topógrafo | D18: h | E18: 29.92 | F18: SINAPI
B19: 88253 | C19: Aux. de topografia | D19: h | E19: 14.48 | F19: SINAPI
B20: COMPOSIÇÃO | C20: Veículo 4x4 à fiscalização com seguro, taxas de licenciamento, revisão periódica, manutenção, combustível e pneus. | D20: mês | E20: ='CPU VEICULO'!D38 -> 6042.96 | F20: CODEVASF | H20: =ORÇAMENTO!G17 -> 900141.12
B21: TABELA CODEVASF | C21: Estação total classe 2 | D21: mês | E21: 1000 | F21: TABELA CODEVASF
B22: TABELA CODEVASF | C22: Rádio | D22: mês | E22: 338.67 | F22: TABELA CODEVASF
B23: 37370 | C23: Alimentacao - horista (coletado caixa) | D23: h | E23: =VLOOKUP(B23,'sinapi_NÃO DESONERADO'!A:E,5,0) -> 2,28 | F23: SINAPI
B24: COTAÇÃO 2 | C24: Hospedagem em hotel | D24: diaria | E24: 110 | F24: COTAÇÃO

Sheet sinapi_NÃO DESONERADO
A1: PRECOS DE INSUMOS - BANCO NACIONAL
A3: MES DE COLETA: 10/2023
A4: LOCALIDADE: 1250 - RECIFE
A5: ENCARGOS SOCIAIS (%) HORISTA 114,55 MENSALISTA 70,11
A7: CODIGO | B7: DESCRICAO DO INSUMO | C7: UNIDADE DE MEDIDA | D7: ORIGEM DO PRECO | E7: PRECO MEDIANO R$
A8: 38605 | B8: ABERTURA PARA ENCAIXE DE CUBA OU LAVATORIO EM BANCADA DE MARMORE/ GRANITO OU OUTRO TIPO DE PEDRA NATURAL | C8: UN | D8: CR | E8: 159,92
A9: 11270 | B9: ABRACADEIRA DE LATAO PARA FIXACAO DE CABO PARA-RAIO, DIMENSOES 32 X 24 X 24 MM | C9: UN | D9: CR | E9: 3,46
A10: 412 | B10: ABRACADEIRA DE NYLON PARA AMARRACAO DE CABOS, COMPRIMENTO DE *230* X *7,6* MM | C10: UN | D10: CR | E10: 1,13
A11: 414 | B11: ABRACADEIRA DE NYLON PARA AMARRACAO DE CABOS, COMPRIMENTO DE 100 X 2,5 MM | C11: UN | D11: CR | E11: 0,07
A12: 410 | B12: ABRACADEIRA DE NYLON PARA AMARRACAO DE CABOS, COMPRIMENTO DE 150 X *3,6* MM | C12: UN | D12: CR | E12: 0,17
A13: 411 | B13: ABRACADEIRA DE NYLON PARA AMARRACAO DE CABOS, COMPRIMENTO DE 200 X *4,6* MM | C13: UN | D13: C | E13: 0,22
A14: 408 | B14: ABRACADEIRA DE NYLON PARA AMARRACAO DE CABOS, COMPRIMENTO DE 390 X *4,6* MM | C14: UN | D14: CR | E14: 1,09
A15: 39131 | B15: ABRACADEIRA EM ACO PARA AMARRACAO DE ELETRODUTOS, TIPO D, COM 1 1/2" E CUNHA DE FIXACAO | C15: UN | D15: CR | E15: 5,02
A16: 394 | B16: ABRACADEIRA EM ACO PARA AMARRACAO DE ELETRODUTOS, TIPO D, COM 1 1/2" E PARAFUSO DE FIXACAO | C16: UN | D16: CR | E16: 5,08
A17: 39130 | B17: ABRACADEIRA EM ACO PARA AMARRACAO DE ELETRODUTOS, TIPO D, COM 1 1/4" E CUNHA DE FIXACAO | C17: UN | D17: CR | E17: 4,58
A18: 395 | B18: ABRACADEIRA EM ACO PARA AMARRACAO DE ELETRODUTOS, TIPO D, COM 1 1/4" E PARAFUSO DE FIXACAO | C18: UN | D18: CR | E18: 4,89
A19: 39127 | B19: ABRACADEIRA EM ACO PARA AMARRACAO DE ELETRODUTOS, TIPO D, COM 1/2" E CUNHA DE FIXACAO | C19: UN | D19: CR | E19: 2,41
A20: 392 | B20: ABRACADEIRA EM ACO PARA AMARRACAO DE ELETRODUTOS, TIPO D, COM 1/2" E PARAFUSO DE FIXACAO | C20: UN | D20: CR | E20: 2,47
A21: 39129 | B21: ABRACADEIRA EM ACO PARA AMARRACAO DE ELETRODUTOS, TIPO D, COM 1" E CUNHA DE FIXACAO | C21: UN | D21: CR | E21: 2,82
A22: 393 | B22: ABRACADEIRA EM ACO PARA AMARRACAO DE ELETRODUTOS, TIPO D, COM 1" E PARAFUSO DE FIXACAO | C22: UN | D22: C | E22: 2,95
A23: 39133 | B23: ABRACADEIRA EM ACO PARA AMARRACAO DE ELETRODUTOS, TIPO D, COM 2 1/2" E CUNHA DE FIXACAO | C23: UN | D23: CR | E23: 6,59
A24: 397 | B24: ABRACADEIRA EM ACO PARA AMARRACAO DE ELETRODUTOS, TIPO D, COM 2 1/2" E PARAFUSO DE FIXACAO | C24: UN | D24: CR | E24: 7,28
A25: 39132 | B25: ABRACADEIRA EM ACO PARA AMARRACAO DE ELETRODUTOS, TIPO D, COM 2" E CUNHA DE FIXACAO | C25: UN | D25: CR | E25: 5,27
A26: 396 | B26: ABRACADEIRA EM ACO PARA AMARRACAO DE ELETRODUTOS, TIPO D, COM 2" E PARAFUSO DE FIXACAO | C26: UN | D26: CR | E26: 5,64
A27: 39135 | B27: ABRACADEIRA EM ACO PARA AMARRACAO DE ELETRODUTOS, TIPO D, COM 3 1/2" E CUNHA DE FIXACAO | C27: UN | D27: CR | E27: 10,54
A28: 39128 | B28: ABRACADEIRA EM ACO PARA AMARRACAO DE ELETRODUTOS, TIPO D, COM 3/4" E CUNHA DE FIXACAO | C28: UN | D28: CR | E28: 2,63
A29: 400 | B29: ABRACADEIRA EM ACO PARA AMARRACAO DE ELETRODUTOS, TIPO D, COM 3/4" E PARAFUSO DE FIXACAO | C29: UN | D29: CR | E29: 2,57
A30: 39125 | B30: ABRACADEIRA EM ACO PARA AMARRACAO DE ELETRODUTOS, TIPO D, COM 3/8" E PARAFUSO DE FIXACAO | C30: UN | D30: CR | E30: 2,63
A31: 39134 | B31: ABRACADEIRA EM ACO PARA AMARRACAO DE ELETRODUTOS, TIPO D, COM 3" E CUNHA DE FIXACAO | C31: UN | D31: CR | E31: 8,78
A32: 398 | B32: ABRACADEIRA EM ACO PARA AMARRACAO DE ELETRODUTOS, TIPO D, COM 3" E PARAFUSO DE FIXACAO | C32: UN | D32: CR | E32: 8,09
A33: 39126 | B33: ABRACADEIRA EM ACO PARA AMARRACAO DE ELETRODUTOS, TIPO D, COM 4" E CUNHA DE FIXACAO | C33: UN | D33: CR | E33: 11,86
A34: 399 | B34: ABRACADEIRA EM ACO PARA AMARRACAO DE ELETRODUTOS, TIPO D, COM 4" E PARAFUSO DE FIXACAO | C34: UN | D34: CR | E34: 10,45
A35: 39158 | B35: ABRACADEIRA EM ACO PARA AMARRACAO DE ELETRODUTOS, TIPO ECONOMICA (GOTA), COM 8" | C35: UN | D35: CR | E35: 28,05
A36: 39141 | B36: ABRACADEIRA EM ACO PARA AMARRACAO DE ELETRODUTOS, TIPO U SIMPLES, COM 1 1/2" | C36: UN | D36: CR | E36: 2,03
A37: 39140 | B37: ABRACADEIRA EM ACO PARA AMARRACAO DE ELETRODUTOS, TIPO U SIMPLES, COM 1 1/4" | C37: UN | D37: CR | E37: 1,85
A38: 39137 | B38: ABRACADEIRA EM ACO PARA AMARRACAO DE ELETRODUTOS, TIPO U SIMPLES, COM 1/2" | C38: UN | D38: CR | E38: 1,06
A39: 39139 | B39: ABRACADEIRA EM ACO PARA AMARRACAO DE ELETRODUTOS, TIPO U SIMPLES, COM 1" | C39: UN | D39: CR | E39: 1,53
A40: 39143 | B40: ABRACADEIRA EM ACO PARA AMARRACAO DE ELETRODUTOS, TIPO U SIMPLES, COM 2 1/2" | C40: UN | D40: CR | E40: 4,20
A41: 39142 | B41: ABRACADEIRA EM ACO PARA AMARRACAO DE ELETRODUTOS, TIPO U SIMPLES, COM 2" | C41: UN | D41: CR | E41: 3,01
A42: 39138 | B42: ABRACADEIRA EM ACO PARA AMARRACAO DE ELETRODUTOS, TIPO U SIMPLES, COM 3/4" | C42: UN | D42: CR | E42: 1,12
A43: 39136 | B43: ABRACADEIRA EM ACO PARA AMARRACAO DE ELETRODUTOS, TIPO U SIMPLES, COM 3/8" | C43: UN | D43: CR | E43: 0,75
A44: 39144 | B44: ABRACADEIRA EM ACO PARA AMARRACAO DE ELETRODUTOS, TIPO U SIMPLES, COM 3" | C44: UN | D44: CR | E44: 4,89
A45: 39145 | B45: ABRACADEIRA EM ACO PARA AMARRACAO DE ELETRODUTOS, TIPO U SIMPLES, COM 4" | C45: UN | D45: CR | E45: 8,06
A46: 12615 | B46: ABRACADEIRA PVC, PARA CALHA PLUVIAL, DIAMETRO ENTRE *80 E 100* MM, PARA DRENAGEM PLUVIAL PREDIAL | C46: UN | D46: CR | E46: 13,85
A47: 11927 | B47: ABRACADEIRA, GALVANIZADA/ZINCADA, ROSCA SEM FIM, PARAFUSO INOX, LARGURA FITA *12,6 A *14 MM, D = 2" A 2 1/2" | C47: UN | D47: CR | E47: 10,35
A48: 11928 | B48: ABRACADEIRA, GALVANIZADA/ZINCADA, ROSCA SEM FIM, PARAFUSO INOX, LARGURA FITA *12,6 A *14 MM, D = 3" A 3 3/4" | C48: UN | D48: CR | E48: 11,86
A49: 11929 | B49: ABRACADEIRA, GALVANIZADA/ZINCADA, ROSCA SEM FIM, PARAFUSO INOX, LARGURA FITA *12,6 A *14 MM, D = 4" A 4 3/4" | C49: UN | D49: CR | E49: 18,34
A50: 36801 | B50: ACABAMENTO DE METAL CROMADO PARA REGISTRO PEQUENO, DE PAREDE, 1/2 " OU 3/4 " | C50: UN | D50: CR | E50: 31,58
A51: 36246 | B51: ACABAMENTO SIMPLES/CONVENCIONAL PARA FORRO PVC, TIPO "U" OU "C", COR BRANCA, COMPRIMENTO 6 M | C51: M | D51: CR | E51: 4,00
A52: 37600 | B52: ACESSORIO DE LIGACAO NAO ELETRICO PARA CARGAS EXPLOSIVAS, TUBO DE 6 M | C52: UN | D52: AS | E52: 104,86
A53: 37599 | B53: ACESSORIO INICIADOR NAO ELETRICO, TUBO DE 6 M, TEMPO DE RETARDO DE *160* MS | C53: UN | D53: AS | E53: 97,60
A54: 1 | B54: ACETILENO (RECARGA DE GAS ACETILENO PARA CILINDRO DE CONJUNTO OXICORTE GRANDE) NAO INCLUI TROCA/MANUTENCAO DO CILINDRO | C54: KG | D54: AS | E54: 78,40
A55: 3 | B55: ACIDO CLORIDRICO / ACIDO MURIATICO, DILUICAO 10% A 12% PARA USO EM LIMPEZA | C55: L | D55: CR | E55: 23,38
A56: 43054 | B56: ACO CA-25, 10,0 MM, OU 12,5 MM, OU 16,0 MM, OU 20,0 MM, OU 25,0 MM, VERGALHAO | C56: KG | D56: CR | E56: 10,57
A57: 42402 | B57: ACO CA-25, 16,0 MM, BARRA DE TRANSFERENCIA | C57: KG | D57: CR | E57: 10,10
A58: 42403 | B58: ACO CA-25, 20,0 MM, BARRA DE TRANSFERENCIA | C58: KG | D58: CR | E58: 12,96
A59: 42404 | B59: ACO CA-25, 25,0 MM, BARRA DE TRANSFERENCIA | C59: KG | D59: CR | E59: 12,88
A60: 42405 | B60: ACO CA-25, 32,0 MM, BARRA DE TRANSFERENCIA | C60: KG | D60: CR | E60: 13,72
A61: 34341 | B61: ACO CA-25, 32,0 MM, VERGALHAO | C61: KG | D61: CR | E61: 11,91
A62: 43053 | B62: ACO CA-25, 6,3 MM OU 8,0 MM, VERGALHAO | C62: KG | D62: CR | E62: 9,44
A63: 43058 | B63: ACO CA-50, 10,0 MM, OU 12,5 MM, OU 16,0 MM, OU 20,0 MM, DOBRADO E CORTADO | C63: KG | D63: CR | E63: 9,79
A64: 34 | B64: ACO CA-50, 10,0 MM, VERGALHAO | C64: KG | D64: CR | E64: 9,84
A65: 43055 | B65: ACO CA-50, 12,5 MM OU 16,0 MM, VERGALHAO | C65: KG | D65: C | E65: 8,52
A66: 43056 | B66: ACO CA-50, 20,0 MM OU 25,0 MM, VERGALHAO | C66: KG | D66: CR | E66: 9,82
A67: 43057 | B67: ACO CA-50, 32,0 MM, VERGALHAO | C67: KG | D67: CR | E67: 10,79
A68: 34449 | B68: ACO CA-50, 6,3 MM, DOBRADO E CORTADO | C68: KG | D68: CR | E68: 11,54
A69: 32 | B69: ACO CA-50, 6,3 MM, VERGALHAO | C69: KG | D69: CR | E69: 10,38
A70: 33 | B70: ACO CA-50, 8,0 MM, VERGALHAO | C70: KG | D70: CR | E70: 10,43
A71: 43061 | B71: ACO CA-60, 4,2 MM OU 5,0 MM, DOBRADO E CORTADO | C71: KG | D71: CR | E71: 9,75
A72: 43059 | B72: ACO CA-60, 4,2 MM, OU 5,0 MM, OU 6,0 MM, OU 7,0 MM, VERGALHAO | C72: KG | D72: CR | E72: 9,31
A73: 43062 | B73: ACO CA-60, 6,0 MM OU 7,0 MM, DOBRADO E CORTADO | C73: KG | D73: CR | E73: 10,31
A74: 43060 | B74: ACO CA-60, 8,0 MM OU 9,5 MM, VERGALHAO | C74: KG | D74: CR | E74: 8,11
A75: 40410 | B75: ACOPLAMENTO RIGIDO EM FERRO FUNDIDO PARA SISTEMA DE TUBULACAO RANHURADA, DN 50 MM (2") | C75: UN | D75: AS | E75: 23,72
A76: 40411 | B76: ACOPLAMENTO RIGIDO EM FERRO FUNDIDO PARA SISTEMA DE TUBULACAO RANHURADA, DN 65 MM (2 1/2") | C76: UN | D76: AS | E76: 25,74
A77: 40412 | B77: ACOPLAMENTO RIGIDO EM FERRO FUNDIDO PARA SISTEMA DE TUBULACAO RANHURADA, DN 80 MM (3") | C77: UN | D77: AS | E77: 28,89
A78: 44254 | B78: ADAPTADOR CPVC, ROSCAVEL, COM FLANGES E ANEL DE VEDACAO, 15 MM, CAIXA D'AGUA PARA AGUA QUENTE | C78: UN | D78: CR | E78: 26,51
A79: 44255 | B79: ADAPTADOR CPVC, ROSCAVEL, COM FLANGES E ANEL DE VEDACAO, 22 MM, CAIXA D'AGUA PARA AGUA QUENTE | C79: UN | D79: CR | E79: 29,38
A80: 44256 | B80: ADAPTADOR CPVC, ROSCAVEL, COM FLANGES E ANEL DE VEDACAO, 28 MM, CAIXA D'AGUA PARA AGUA QUENTE | C80: UN | D80: CR | E80: 33,19
A81: 44257 | B81: ADAPTADOR CPVC, ROSCAVEL, COM FLANGES E ANEL DE VEDACAO, 35 MM, CAIXA D'AGUA PARA AGUA QUENTE | C81: UN | D81: CR | E81: 52,50
A82: 44258 | B82: ADAPTADOR CPVC, ROSCAVEL, COM FLANGES E ANEL DE VEDACAO, 42 MM, CAIXA D'AGUA PARA AGUA QUENTE | C82: UN | D82: CR | E82: 60,00
A83: 44259 | B83: ADAPTADOR CPVC, ROSCAVEL, COM FLANGES E ANEL DE VEDACAO, 54 MM, CAIXA D'AGUA PARA AGUA QUENTE | C83: UN | D83: CR | E83: 82,36
A84: 37997 | B84: ADAPTADOR CPVC, SOLDAVEL, 15 MM, PARA AGUA QUENTE | C84: UN | D84: CR | E84: 15,80
A85: 37998 | B85: ADAPTADOR CPVC, SOLDAVEL, 22 MM, PARA AGUA QUENTE | C85: UN | D85: CR | E85: 21,14
A86: 55 | B86: ADAPTADOR DE COMPRESSAO EM POLIPROPILENO (PP), PARA TUBO EM PEAD, 20 MM X 1/2", PARA LIGACAO PREDIAL DE AGUA (NTS 179) | C86: UN | D86: AS | E86: 4,20
A87: 61 | B87: ADAPTADOR DE COMPRESSAO EM POLIPROPILENO (PP), PARA TUBO EM PEAD, 20 MM X 3/4", PARA LIGACAO PREDIAL DE AGUA (NTS 179) | C87: UN | D87: AS | E87: 3,97
A88: 62 | B88: ADAPTADOR DE COMPRESSAO EM POLIPROPILENO (PP), PARA TUBO EM PEAD, 32 MM X 1", PARA LIGACAO PREDIAL DE AGUA (NTS 179) | C88: UN | D88: AS | E88: 8,23
A89: 10899 | B89: ADAPTADOR EM LATAO, ENGATE RAPIDO 2 1/2" X ROSCA INTERNA 5 FIOS 2 1/2", PARA INSTALACAO PREDIAL DE COMBATE A INCENDIO | C89: UN | D89: CR | E89: 108,42
A90: 10900 | B90: ADAPTADOR EM LATAO, ENGATE RAPIDO1 1/2" X ROSCA INTERNA 5 FIOS 2 1/2", PARA INSTALACAO PREDIAL DE COMBATE A INCENDIO | C90: UN | D90: CR | E90: 84,85
A91: 103 | B91: ADAPTADOR PVC SOLDAVEL CURTO COM BOLSA E ROSCA, 110 MM X 4", PARA AGUA FRIA | C91: UN | D91: CR | E91: 48,01
A92: 107 | B92: ADAPTADOR PVC SOLDAVEL CURTO COM BOLSA E ROSCA, 20 MM X 1/2", PARA AGUA FRIA | C92: UN | D92: CR | E92: 0,90
A93: 65 | B93: ADAPTADOR PVC SOLDAVEL CURTO COM BOLSA E ROSCA, 25 MM X 3/4", PARA AGUA FRIA | C93: UN | D93: CR | E93: 0,99
A94: 108 | B94: ADAPTADOR PVC SOLDAVEL CURTO COM BOLSA E ROSCA, 32 MM X 1", PARA AGUA FRIA | C94: UN | D94: CR | E94: 1,99
A95: 110 | B95: ADAPTADOR PVC SOLDAVEL CURTO COM BOLSA E ROSCA, 40 MM X 1 1/2", PARA AGUA FRIA | C95: UN | D95: CR | E95: 6,91
A96: 109 | B96: ADAPTADOR PVC SOLDAVEL CURTO COM BOLSA E ROSCA, 40 MM X 1 1/4", PARA AGUA FRIA | C96: UN | D96: CR | E96: 4,11
A97: 111 | B97: ADAPTADOR PVC SOLDAVEL CURTO COM BOLSA E ROSCA, 50 MM X 1 1/4", PARA AGUA FRIA | C97: UN | D97: CR | E97: 9,35
A98: 112 | B98: ADAPTADOR PVC SOLDAVEL CURTO COM BOLSA E ROSCA, 50 MM X1 1/2", PARA AGUA FRIA | C98: UN | D98: CR | E98: 4,95
A99: 113 | B99: ADAPTADOR PVC SOLDAVEL CURTO COM BOLSA E ROSCA, 60 MM X 2", PARA AGUA FRIA | C99: UN | D99: CR | E99: 12,40
A100: 104 | B100: ADAPTADOR PVC SOLDAVEL CURTO COM BOLSA E ROSCA, 75 MM X 2 1/2", PARA AGUA FRIA | C100: UN | D100: CR | E100: 21,58
A101: 102 | B101: ADAPTADOR PVC SOLDAVEL CURTO COM BOLSA E ROSCA, 85 MM X 3", PARA AGUA FRIA | C101: UN | D101: CR | E101: 29,75
A102: 95 | B102: ADAPTADOR PVC SOLDAVEL, COM FLANGE E ANEL DE VEDACAO, 20 MM X 1/2", PARA CAIXA D'AGUA | C102: UN | D102: CR | E102: 12,57
A103: 96 | B103: ADAPTADOR PVC SOLDAVEL, COM FLANGE E ANEL DE VEDACAO, 25 MM X 3/4", PARA CAIXA D'AGUA | C103: UN | D103: CR | E103: 13,68
A104: 97 | B104: ADAPTADOR PVC SOLDAVEL, COM FLANGE E ANEL DE VEDACAO, 32 MM X 1", PARA CAIXA D'AGUA | C104: UN | D104: CR | E104: 20,57
A105: 98 | B105: ADAPTADOR PVC SOLDAVEL, COM FLANGE E ANEL DE VEDACAO, 40 MM X 1 1/4", PARA CAIXA D'AGUA | C105: UN | D105: CR | E105: 30,80
A106: 99 | B106: ADAPTADOR PVC SOLDAVEL, COM FLANGE E ANEL DE VEDACAO, 50 MM X 1 1/2", PARA CAIXA D'AGUA | C106: UN | D106: CR | E106: 29,11
A107: 100 | B107: ADAPTADOR PVC SOLDAVEL, COM FLANGES E ANEL DE VEDACAO, 60 MM X 2", PARA CAIXA D' AGUA | C107: UN | D107: CR | E107: 50,86
A108: 75 | B108: ADAPTADOR PVC SOLDAVEL, COM FLANGES LIVRES, 110 MM X 4", PARA CAIXA D' AGUA | C108: UN | D108: CR | E108: 296,52
A109: 83 | B109: ADAPTADOR PVC SOLDAVEL, COM FLANGES LIVRES, 75 MM X 2 1/2", PARA CAIXA D' AGUA | C109: UN | D109: CR | E109: 237,06
A110: 74 | B110: ADAPTADOR PVC SOLDAVEL, COM FLANGES LIVRES, 85 MM X 3", PARA CAIXA D' AGUA | C110: UN | D110: CR | E110: 338,92
A111: 106 | B111: ADAPTADOR PVC SOLDAVEL, LONGO, COM FLANGE LIVRE, 110 MM X 4", PARA CAIXA D' AGUA | C111: UN | D111: CR | E111: 428,58
A112: 88 | B112: ADAPTADOR PVC SOLDAVEL, LONGO, COM FLANGE LIVRE, 32 MM X 1", PARA CAIXA D' AGUA | C112: UN | D112: CR | E112: 12,04
A113: 82 | B113: ADAPTADOR PVC SOLDAVEL, LONGO, COM FLANGE LIVRE, 75 MM X 2 1/2", PARA CAIXA D' AGUA | C113: UN | D113: CR | E113: 225,54
A114: 105 | B114: ADAPTADOR PVC SOLDAVEL, LONGO, COM FLANGE LIVRE, 85 MM X 3", PARA CAIXA D' AGUA | C114: UN | D114: CR | E114: 319,59
A115: 60 | B115: ADAPTADOR PVC, COM REGISTRO, PARA PEAD, 20 MM X 3/4", PARA LIGACAO PREDIAL DE AGUA | C115: UN | D115: AS | E115: 5,45
A116: 72 | B116: ADAPTADOR PVC, ROSCAVEL, COM FLANGES E ANEL DE VEDACAO, 1 1/2", PARA CAIXA D'AGUA | C116: UN | D116: CR | E116: 55,83
A117: 67 | B117: ADAPTADOR PVC, ROSCAVEL, COM FLANGES E ANEL DE VEDACAO, 1/2", PARA CAIXA D' AGUA | C117: UN | D117: CR | E117: 18,05
A118: 71 | B118: ADAPTADOR PVC, ROSCAVEL, COM FLANGES E ANEL DE VEDACAO, 1", PARA CAIXA D' AGUA | C118: UN | D118: CR | E118: 34,48
A119: 73 | B119: ADAPTADOR PVC, ROSCAVEL, COM FLANGES E ANEL DE VEDACAO, 3/4", PARA CAIXA D' AGUA | C119: UN | D119: CR | E119: 17,27
A120: 46 | B120: ADAPTADOR, PVC PBA, BOLSA/ROSCA, JE, DN 75 / DE 85 MM | C120: UN | D120: AS | E120: 38,06
A121: 47 | B121: ADAPTADOR, PVC PBA, BOLSA/ROSCA, JE, DN 100 / DE 110 MM | C121: UN | D121: AS | E121: 65,07
A122: 48 | B122: ADAPTADOR, PVC PBA, BOLSA/ROSCA, JE, DN 50 / DE 60 MM | C122: UN | D122: AS | E122: 16,97
A123: 52 | B123: ADAPTADOR, PVC PBA, PONTA/ROSCA, JE, DN 50 / DE 60 MM | C123: UN | D123: AS | E123: 12,89
A124: 43 | B124: ADAPTADOR, PVC PBA, PONTA/ROSCA, JE, DN 75 / DE 85 MM | C124: UN | D124: AS | E124: 43,52
A125: 39719 | B125: ADESIVO / COLA DE CONTATO LIQUIDO, A BASE DE RESINAS, PARA COLAGEM DE ESPUMA PARA ISOLAMENTO TERMICO FLEXIVEL | C125: L | D125: CR | E125: 158,12
A126: 3410 | B126: ADESIVO / COLA PARA EPS (ISOPOR) E OUTROS MATERIAIS | C126: KG | D126: CR | E126: 35,57
A127: 4791 | B127: ADESIVO ACRILICO DE BASE AQUOSA / COLA DE CONTATO | C127: KG | D127: CR | E127: 46,44
A128: 157 | B128: ADESIVO ESTRUTURAL A BASE DE RESINA EPOXI PARA INJECAO EM TRINCAS, BICOMPONENTE, BAIXA VISCOSIDADE | C128: KG | D128: CR | E128: 162,57
A129: 156 | B129: ADESIVO ESTRUTURAL A BASE DE RESINA EPOXI, BICOMPONENTE, FLUIDO | C129: KG | D129: CR | E129: 57,88
A130: 131 | B130: ADESIVO ESTRUTURAL A BASE DE RESINA EPOXI, BICOMPONENTE, PASTOSO (TIXOTROPICO) | C130: KG | D130: CR | E130: 49,50
A131: 21114 | B131: ADESIVO PARA TUBOS CPVC, *75* G | C131: UN | D131: CR | E131: 31,17
A132: 119 | B132: ADESIVO PLASTICO PARA PVC, BISNAGA COM 75 GR | C132: UN | D132: C | E132: 7,90
A133: 122 | B133: ADESIVO PLASTICO PARA PVC, FRASCO COM *850* GR | C133: UN | D133: CR | E133: 60,78
A134: 20080 | B134: ADESIVO PLASTICO PARA PVC, FRASCO COM 175 GR | C134: UN | D134: CR | E134: 19,84
A135: 124 | B135: ADITIVO ACELERADOR DE PEGA E ENDURECIMENTO PARA ARGAMASSAS E CONCRETOS, LIQUIDO E ISENTO DE CLORETOS | C135: L | D135: CR | E135: 19,09
A136: 7334 | B136: ADITIVO ADESIVO LIQUIDO PARA ARGAMASSAS DE REVESTIMENTOS CIMENTICIOS | C136: L | D136: CR | E136: 16,08
A137: 123 | B137: ADITIVO IMPERMEABILIZANTE DE PEGA NORMAL PARA ARGAMASSAS E CONCRETOS SEM ARMACAO, LIQUIDO E ISENTO DE CLORETOS | C137: L | D137: C | E137: 7,81
A138: 127 | B138: ADITIVO IMPERMEABILIZANTE DE PEGA ULTRARRAPIDA, LIQUIDO E ISENTO DE CLORETOS | C138: L | D138: CR | E138: 18,64
A139: 41373 | B139: ADITIVO LIQUIDO IMPERMEABILIZANTE CRISTALIZANTE | C139: L | D139: CR | E139: 25,98
A140: 133 | B140: ADITIVO LIQUIDO INCORPORADOR DE AR PARA CONCRETO E ARGAMASSA, LIQUIDO E ISENTO DE CLORETOS | C140: L | D140: CR | E140: 7,74
A141: 43617 | B141: ADITIVO PLASTIFICANTE E ESTABILIZADOR PARA ARGAMASSAS DE ASSENTAMENTO E REBOCO, LIQUIDO E ISENTO DE CLORETOS | C141: L | D141: CR | E141: 8,65
A142: 132 | B142: ADITIVO PLASTIFICANTE RETARDADOR DE PEGA E REDUTOR DE AGUA PARA CONCRETO, LIQUIDO E ISENTO DE CLORETOS | C142: L | D142: CR | E142: 8,03
A143: 43618 | B143: ADITIVO SUPERPLASTIFICANTE DE PEGA NORMAL PARA CONCRETO, LIQUIDO E ISENTO DE CLORETOS | C143: KG | D143: CR | E143: 20,21
A144: 37476 | B144: ADUELA/ GALERIA PRE-MOLDADA DE CONCRETO ARMADO, SECAO QUADRADA INTERNA DE 1,50 X 1,50 M (L X A), MISULA DE 20 X 20 CM, C = 1,00 M, ESPESSURA MIN = 15 CM, TB-45 E FCK DO CONCRETO = 30 MPA | C144: UN | D144: CR | E144: 2.911,76
A145: 37478 | B145: ADUELA/ GALERIA PRE-MOLDADA DE CONCRETO ARMADO, SECAO RETANGULAR INTERNA DE 2,00 X 2,00 M (L X A), MISULA DE 20 X 20 CM, C = 1,00 M, ESPESSURA MIN = 15 CM, TB-45 E FCK DO CONCRETO = 30 MPA | C145: UN | D145: CR | E145: 3.647,05
A146: 37477 | B146: ADUELA/ GALERIA PRE-MOLDADA DE CONCRETO ARMADO, SECAO RETANGULAR INTERNA DE 2,50 X 2,50 M (L X A), MISULA DE 20 X 20 CM, C = 1,00 M, ESPESSURA MIN = 15 CM, TB-45 E FCK DO CONCRETO = 30 MPA | C146: UN | D146: CR | E146: 4.941,17
A147: 37479 | B147: ADUELA/ GALERIA PRE-MOLDADA DE CONCRETO ARMADO, SECAO RETANGULAR INTERNA DE 3,00 X 3,00 M (L X A), MISULA DE 20 X 20 CM, C = 1.00 M, ESPESSURA MIN = 20 CM, TB-45 E FCK DO CONCRETO = 30 MPA | C147: UN | D147: CR | E147: 5.860,29
A148: 4319 | B148: AFASTADOR PARA TELHA DE FIBROCIMENTO CANALETE 90 OU KALHETAO | C148: UN | D148: CR | E148: 1,44
A149: 42409 | B149: AGENTE DE CURA, PROTETOR DA EVAPORACAO DA AGUA DE HIDRATACAO DO CONCRETO | C149: KG | D149: CR | E149: 12,73
A150: 40553 | B150: AGREGADO RECICLADO, TIPO RACHAO RECICLADO CINZA, CLASSE A | C150: M3 | D150: AS | E150: 52,50
A151: 6114 | B151: AJUDANTE DE ARMADOR (HORISTA) | C151: H | D151: CR | E151: 16,00
A152: 40912 | B152: AJUDANTE DE ARMADOR (MENSALISTA) | C152: MES | D152: CR | E152: 2.792,18
A153: 247 | B153: AJUDANTE DE ELETRICISTA (HORISTA) | C153: H | D153: CR | E153: 16,00
A154: 40919 | B154: AJUDANTE DE ELETRICISTA (MENSALISTA) | C154: MES | D154: CR | E154: 2.792,18
A155: 44499 | B155: AJUDANTE DE ESTRUTURAS METALICAS (HORISTA) | C155: H | D155: CR | E155: 16,00
A156: 40984 | B156: AJUDANTE DE ESTRUTURAS METALICAS (MENSALISTA) | C156: MES | D156: CR | E156: 2.792,18
A157: 248 | B157: AJUDANTE DE OPERACAO EM GERAL (HORISTA) | C157: H | D157: CR | E157: 16,13
A158: 41086 | B158: AJUDANTE DE OPERACAO EM GERAL (MENSALISTA) | C158: MES | D158: CR | E158: 2.816,91
A159: 34466 | B159: AJUDANTE DE PINTOR (HORISTA) | C159: H | D159: CR | E159: 16,00
A160: 41083 | B160: AJUDANTE DE PINTOR (MENSALISTA) | C160: MES | D160: CR | E160: 2.792,18
A161: 252 | B161: AJUDANTE DE SERRALHEIRO (HORISTA) | C161: H | D161: CR | E161: 16,00
A162: 40909 | B162: AJUDANTE DE SERRALHEIRO (MENSALISTA) | C162: MES | D162: CR | E162: 2.792,18
A163: 242 | B163: AJUDANTE ESPECIALIZADO (HORISTA) | C163: H | D163: CR | E163: 16,13
A164: 41085 | B164: AJUDANTE ESPECIALIZADO (MENSALISTA) | C164: MES | D164: CR | E164: 2.816,91
A165: 427 | B165: ALCA PREFORMADA DE CONTRA POSTE, EM ACO GALVANIZADO, PARA CABO 3/16", COMPRIMENTO *860* MM | C165: UN | D165: AS | E165: 6,31
A166: 417 | B166: ALCA PREFORMADA DE DISTRIBUICAO, EM ACO GALVANIZADO, PARA CABO DE ALUMINIO DIAMETRO 16 A 25 MM | C166: UN | D166: AS | E166: 2,97
A167: 11273 | B167: ALCA PREFORMADA DE DISTRIBUICAO, EM ACO GALVANIZADO, PARA CONDUTORES DE ALUMINIO AWG 1/0 (CAA 6/1 OU CA 7 FIOS) | C167: UN | D167: AS | E167: 9,22
A168: 11272 | B168: ALCA PREFORMADA DE DISTRIBUICAO, EM ACO GALVANIZADO, PARA CONDUTORES DE ALUMINIO AWG 2 (CAA 6/1 OU CA 7 FIOS) | C168: UN | D168: AS | E168: 5,57
A169: 11275 | B169: ALCA PREFORMADA DE SERVICO, EM ACO GALVANIZADO, PARA CONDUTORES DE ALUMINIO AWG 4 (CAA 6/1) | C169: UN | D169: AS | E169: 2,23
A170: 11274 | B170: ALCA PREFORMADA DE SERVICO, EM ACO GALVANIZADO, PARA CONDUTORES DE ALUMINIO AWG 6 (CAA 6/1) | C170: UN | D170: AS | E170: 1,70
A171: 38470 | B171: ALICATE DE CORTE DIAGONAL 6 " COM ISOLAMENTO | C171: UN | D171: C | E171: 42,00
A172: 38547 | B172: ALICATE DE CRIMPAR RJ11, RJ12 E RJ45 | C172: UN | D172: CR | E172: 114,61
A173: 38469 | B173: ALICATE DE PRESSAO PARA SOLDA DE CHAPA 18 " | C173: UN | D173: CR | E173: 123,24
A174: 38467 | B174: ALICATE DE PRESSAO 11 " PARA SOLDA, TIPO C | C174: UN | D174: CR | E174: 69,34
A175: 38468 | B175: ALICATE DE PRESSAO 11 " PARA SOLDA, TIPO U | C175: UN | D175: CR | E175: 76,30
A176: 38471 | B176: ALICATE PARA ANEIS DE PISTAO, CAPACIDADE 50 A 100 MM | C176: UN | D176: CR | E176: 99,09
A177: 37370 | B177: ALIMENTACAO - HORISTA (COLETADO CAIXA - ENCARGOS COMPLEMENTARES) | C177: H | D177: C | E177: 2,28
A178: 40862 | B178: ALIMENTACAO - MENSALISTA (COLETADO CAIXA - ENCARGOS COMPLEMENTARES) | C178: MES | D178: C | E178: 429,36
A179: 10658 | B179: ALISADORA DE CONCRETO COM MOTOR A GASOLINA DE 5,5 HP, PESO COM MOTOR DE 78 KG, 4 PAS | C179: UN | D179: AS | E179: 8.127,90
A180: 253 | B180: ALMOXARIFE (HORISTA) | C180: H | D180: C | E180: 20,03
A181: 40809 | B181: ALMOXARIFE (MENSALISTA) | C181: MES | D181: CR | E181: 3.495,42
A182: 42428 | B182: ALONGADOR COM TRES ALTURAS, EM TUBO DE ACO CARBONO, PINTURA NO PROCESSO ELETROSTATICO - EQUIPAMENTO DE GINASTICA PARA ACADEMIA AO AR LIVRE / ACADEMIA DA TERCEIRA IDADE - ATI | C182: UN | D182: AS | E182: 2.271,00
A183: 301 | B183: ANEL BORRACHA PARA TUBO ESGOTO PREDIAL, DN 100 MM (NBR 5688) | C183: UN | D183: C | E183: 4,00
A184: 296 | B184: ANEL BORRACHA PARA TUBO ESGOTO PREDIAL, DN 50 MM (NBR 5688) | C184: UN | D184: CR | E184: 2,26
A185: 297 | B185: ANEL BORRACHA PARA TUBO ESGOTO PREDIAL, DN 75 MM (NBR 5688) | C185: UN | D185: CR | E185: 3,32
A186: 299 | B186: ANEL BORRACHA, DN 100 MM, PARA TUBO SERIE REFORCADA ESGOTO PREDIAL | C186: UN | D186: CR | E186: 4,69
A187: 300 | B187: ANEL BORRACHA, DN 150 MM, PARA TUBO SERIE REFORCADA ESGOTO PREDIAL | C187: UN | D187: CR | E187: 16,24
A188: 20085 | B188: ANEL BORRACHA, DN 50 MM, PARA TUBO SERIE REFORCADA ESGOTO PREDIAL | C188: UN | D188: CR | E188: 2,97
A189: 298 | B189: ANEL BORRACHA, DN 75 MM, PARA TUBO SERIE REFORCADA ESGOTO PREDIAL | C189: UN | D189: CR | E189: 3,61
A190: 311 | B190: ANEL BORRACHA, PARA TUBO PVC DEFOFO, DN 100 MM (NBR 7665) | C190: UN | D190: CR | E190: 13,39
A191: 318 | B191: ANEL BORRACHA, PARA TUBO PVC DEFOFO, DN 150 MM (NBR 7665) | C191: UN | D191: CR | E191: 26,97
A192: 319 | B192: ANEL BORRACHA, PARA TUBO PVC DEFOFO, DN 200 MM (NBR 7665) | C192: UN | D192: CR | E192: 42,28
A193: 303 | B193: ANEL BORRACHA, PARA TUBO PVC, REDE COLETOR ESGOTO, DN 100 MM (NBR 7362) | C193: UN | D193: CR | E193: 4,43
A194: 305 | B194: ANEL BORRACHA, PARA TUBO PVC, REDE COLETOR ESGOTO, DN 150 MM (NBR 7362) | C194: UN | D194: CR | E194: 13,94
A195: 306 | B195: ANEL BORRACHA, PARA TUBO PVC, REDE COLETOR ESGOTO, DN 200 MM (NBR 7362) | C195: UN | D195: CR | E195: 21,14
A196: 307 | B196: ANEL BORRACHA, PARA TUBO PVC, REDE COLETOR ESGOTO, DN 250 MM (NBR 7362) | C196: UN | D196: CR | E196: 53,41
A197: 309 | B197: ANEL BORRACHA, PARA TUBO PVC, REDE COLETOR ESGOTO, DN 350 MM (NBR 7362) | C197: UN | D197: CR | E197: 87,49
A198: 310 | B198: ANEL BORRACHA, PARA TUBO PVC, REDE COLETOR ESGOTO, DN 400 MM (NBR 7362) | C198: UN | D198: CR | E198: 121,26
A199: 328 | B199: ANEL BORRACHA, PARA TUBO/CONEXAO PVC PBA, DN 100 MM, PARA REDE AGUA | C199: UN | D199: CR | E199: 10,60
A200: 325 | B200: ANEL BORRACHA, PARA TUBO/CONEXAO PVC PBA, DN 50 MM, PARA REDE AGUA | C200: UN | D200: CR | E200: 3,13
A201: 20326 | B201: ANEL BORRACHA, PARA TUBO/CONEXAO PVC PBA, DN 60 MM, PARA REDE AGUA | C201: UN | D201: CR | E201: 5,72
A202: 329 | B202: ANEL BORRACHA, PARA TUBO/CONEXAO PVC PBA, DN 75 MM, PARA REDE AGUA | C202: UN | D202: CR | E202: 8,86
... 4739 more rows

Sheet Plan2
B2: Passagem de ônibus de Petrolina para cidade de origem (Recife). | C2: unid.
B3: Aluguel de Sala para escritório | C3: mês
A4: 2705 | B4: Energia elétrica | C4: kwh
B5: Telefone - tarifa mensal | C5: unid.
B6: Internet | C6: mês
A7: 10562/ORSE | B7: Material de consumo desenho e escritório | C7: mês
A8: 10563/ORSE | B8: Material de Limpeza
A9: 40812 | B9: Auxiliar de Escritorio | C9: mês
A10: 40808 | B10: DESENHISTA TECNICO AUXILIAR | C10: mês
A11: 40805 | B11: DESENHISTA DETALHISTA | C11: mês
A12: 2707 | B12: Coordenador/campo | C12: h
A13: 7592 | B13: Topógrafo | C13: h
A14: 244 | B14: Aux. de topografia | C14: h
B15: Veículo popular potencia de motor de 1.6, incluindo despesas com combustível, lubrificantes, manutenção, licenciamento, seguros, impostos etc., sem motorista | C15: mês
B16: Estação total classe 1 completa | C16: mês
B17: Micro/soft/rádio | C17: mês
B18: Hospedagem | C18: unid.
B19: Alimentação | C19: unid.
